fUSD/lending_fUSD_20240521
["ID","MTS","AMOUNT","RATE_DAILY","PERIOD"]
[327600902,1716250243731,-504.24,0.00038356,6]
[327600904,1716250243740,-500.0,0.00038356,6]
[327600906,1716250243749,-500.0,0.00038356,6]
[327600907,1716250243759,-1129.66,0.00038356,6]
[327600909,1716250243768,-500.0,0.00038356,6]
[327600910,1716250243777,-956.51,0.00038356,6]
[327600912,1716250243787,-536.89,0.00038356,6]
[327600913,1716250243796,-579.7,0.00038356,6]
[327600914,1716250243805,-933.56,0.00038356,6]
[327600916,1716250243814,-500.0,0.00038356,6]
[327600917,1716250243823,-1005.42,0.00038356,6]
[327600918,1716250243833,-660.44,0.00038356,6]
[327600920,1716250243843,-414.16171976,0.00038356,6]
[327600921,1716250243852,-500.0,0.00038356,6]
[327600923,1716250243862,-500.0,0.00038356,6]
[327600924,1716250243872,-614.6,0.00038356,6]
[327600925,1716250243882,-500.0,0.00038356,6]
[327600927,1716250243891,-1219.59,0.00038356,6]
[327600928,1716250243901,-740.45,0.00038356,6]
[327600930,1716250243910,-500.0,0.00038356,6]
[327600931,1716250243919,-500.0,0.00038356,6]
[327600932,1716250243929,-500.0,0.00038356,6]
[327600934,1716250243938,-500.0,0.00038356,6]
[327600935,1716250243948,-500.0,0.00038356,6]
[327600937,1716250243958,-500.0,0.00038356,6]
[327600938,1716250243967,-1383.33,0.00038356,6]
[327600939,1716250243976,-500.0,0.00038356,6]
[327600941,1716250243985,-500.0,0.00038356,6]
[327600942,1716250243994,-1137.3,0.00038356,6]
[327600944,1716250244003,-600.2,0.00038356,6]
[327600945,1716250244012,-520.88,0.00038356,6]
[327600946,1716250244022,-500.0,0.00038356,6]
[327600948,1716250244031,-623.48,0.00038356,6]
[327600949,1716250244041,-1297.62,0.00038356,6]
[327600951,1716250244051,-500.0,0.00038356,6]
[327600952,1716250244061,-500.0,0.00038356,6]
[327600953,1716250244070,-1220.45,0.00038356,6]
[327600955,1716250244079,-852.19,0.00038356,6]
[327600956,1716250244088,-500.0,0.00038356,6]
[327600957,1716250244097,-500.0,0.00038356,6]
[327600959,1716250244106,-822.74,0.00038356,6]
[327600960,1716250244115,-500.0,0.00038356,6]
[327600962,1716250244126,-500.0,0.00038356,6]
[327600963,1716250244136,-500.0,0.00038356,6]
[327600964,1716250244145,-616.66,0.00038356,6]
[327600966,1716250244154,-733.07,0.00038356,6]
[327600967,1716250244163,-1586.07,0.00038356,6]
[327600969,1716250244172,-500.0,0.00038356,6]
[327600970,1716250244181,-337.91872265,0.00038356,6]
[327600971,1716250244191,-509.11,0.00038356,6]
[327600973,1716250244200,-904.11,0.00038356,6]
[327600974,1716250244209,-500.0,0.00038356,6]
[327600976,1716250244219,-500.0,0.00038356,6]
[327600977,1716250244229,-500.0,0.00038356,6]
[327600979,1716250244238,-1365.44,0.00038356,6]
[327600980,1716250244247,-500.0,0.00038356,6]
[327600981,1716250244257,-500.0,0.00038356,6]
[327600983,1716250244266,-446.58522491,0.00038356,6]
[327600984,1716250244275,-1031.45,0.00038356,6]
[327600986,1716250244284,-745.6,0.00038356,6]
[327600987,1716250244294,-673.25,0.00038356,6]
[327600988,1716250244304,-181.80579823,0.00038356,6]
[327600990,1716250244313,-500.0,0.00038356,6]
[327600991,1716250244322,-1376.8,0.00038356,6]
[327600992,1716250244331,-500.0,0.00038356,6]
[327600994,1716250244341,-500.0,0.00038356,6]
[327600995,1716250244351,-500.0,0.00038356,6]
[327600997,1716250244360,-500.0,0.00038356,6]
[327600998,1716250244371,-2193.47,0.00038356,6]
[327600999,1716250244380,-500.0,0.00038356,6]
[327601001,1716250244389,-1300.13,0.00038356,6]
[327601002,1716250244398,-647.9,0.00038356,6]
[327601004,1716250244407,-500.0,0.00038356,6]
[327601005,1716250244416,-500.0,0.00038356,6]
[327601006,1716250244426,-500.0,0.00038356,6]
[327601008,1716250244435,-1393.74,0.00038356,6]
[327601009,1716250244444,-500.0,0.00038356,6]
[327601011,1716250244453,-500.0,0.00038356,6]
[327601012,1716250244463,-500.0,0.00038356,6]
[327601013,1716250244473,-528.08,0.00038356,6]
[327601015,1716250244483,-500.0,0.00038356,6]
[327601016,1716250244493,-500.0,0.00038356,6]
[327601018,1716250244502,-500.0,0.00038356,6]
[327601019,1716250244512,-1434.41,0.00038356,6]
[327601020,1716250244523,-500.0,0.00038356,6]
[327601022,1716250244532,-506.41239466,0.00038356,6]
[327601023,1716250244541,-597.04,0.00038356,6]
[327601024,1716250244551,-500.0,0.00038356,6]
[327601026,1716250244562,-500.0,0.00038356,6]
[327601027,1716250244571,-500.0,0.00038356,6]
[327601029,1716250244580,-299.29440369,0.00038356,6]
[327601031,1716250244614,-200.70559631,0.00038356,6]
[327601032,1716250244625,-739.54,0.00038356,6]
[327601034,1716250244634,-558.92,0.00038356,6]
[327601035,1716250244644,-718.6,0.00038356,6]
[327601037,1716250244653,-1308.95,0.00038356,6]
[327601038,1716250244662,-500.0,0.00038356,6]
[327601039,1716250244671,-500.0,0.00038356,6]
[327601041,1716250244681,-500.0,0.00038356,6]
[327601042,1716250244690,-500.0,0.00038356,6]
[327601044,1716250244699,-500.0,0.00038356,6]
[327601045,1716250244709,-500.0,0.00038356,6]
[327601046,1716250244718,-500.0,0.00038356,6]
[327601048,1716250244727,-500.0,0.00038356,6]
[327601049,1716250244736,-500.0,0.00038356,6]
[327601050,1716250244745,-854.62,0.00038356,6]
[327601052,1716250244754,-2165.22,0.00038356,6]
[327601053,1716250244763,-653.22,0.00038356,6]
[327601055,1716250244772,-500.0,0.00038356,6]
[327601056,1716250244781,-500.0,0.00038356,6]
[327601057,1716250244791,-612.35,0.00038356,6]
[327601058,1716250244801,-686.91,0.00038356,6]
[327601059,1716250244810,-500.0,0.00038356,6]
[327601060,1716250244820,-502.93,0.00038356,6]
[327601061,1716250244829,-500.0,0.00038356,6]
[327601062,1716250244839,-918.94,0.00038356,6]
[327601063,1716250244848,-545.97,0.00038356,6]
[327601064,1716250244856,-500.0,0.00038356,6]
[327601065,1716250244866,-566.53,0.00038356,6]
[327601066,1716250244876,-500.0,0.00038356,6]
[327601067,1716250244886,-500.0,0.00038356,6]
[327601068,1716250244895,-500.0,0.00038356,6]
[327601069,1716250244904,-500.0,0.00038356,6]
[327601071,1716250244914,-515.33,0.00038356,6]
[327601072,1716250244923,-954.01,0.00038356,6]
[327601073,1716250244932,-500.0,0.00038356,6]
[327601075,1716250244941,-500.0,0.00038356,2]
[327601076,1716250244950,-500.0,0.00038356,6]
[327601077,1716250244959,-601.89,0.00038356,6]
[327601079,1716250244969,-500.0,0.00038356,6]
[327601080,1716250244979,-500.0,0.00038356,6]
[327601082,1716250244988,-500.0,0.00038356,6]
[327601083,1716250244998,-732.7,0.00038356,6]
[327601084,1716250245008,-679.17,0.00038356,6]
[327601086,1716250245018,-622.83199049,0.00038356,6]
[327601087,1716250245027,-823.95,0.00038356,6]
[327601089,1716250245038,-500.0,0.00038356,6]
[327601090,1716250245047,-500.0,0.00038356,6]
[327601091,1716250245057,-500.0,0.00038356,6]
[327601093,1716250245066,-500.0,0.00038356,6]
[327601094,1716250245076,-500.0,0.00038356,6]
[327601096,1716250245086,-500.0,0.00038356,6]
[327601097,1716250245096,-164.82,0.00038356,6]
[327601098,1716250245105,-898.39,0.00038356,6]
[327601100,1716250245115,-1408.7,0.00038356,6]
[327601101,1716250245126,-1336.76,0.00038356,6]
[327601103,1716250245135,-1146.16,0.00038356,6]
[327601104,1716250245145,-500.0,0.00038356,6]
[327601105,1716250245155,-500.0,0.00038356,6]
[327601107,1716250245165,-500.0,0.00038356,6]
[327601108,1716250245174,-1598.68,0.00038356,6]
[327601110,1716250245184,-1608.79,0.00038356,6]
[327601111,1716250245195,-500.0,0.00038356,6]
[327601112,1716250245204,-683.43,0.00038356,6]
[327601114,1716250245214,-640.31,0.00038356,6]
[327601115,1716250245224,-1369.49,0.00038356,6]
[327601117,1716250245233,-500.0,0.00038356,6]
[327601118,1716250245243,-975.81,0.00038356,6]
[327601120,1716250245253,-500.0,0.00038356,6]
[327601121,1716250245263,-2208.57,0.00038356,6]
[327601122,1716250245273,-500.0,0.00038356,6]
[327601124,1716250245283,-500.0,0.00038356,6]
[327601125,1716250245294,-500.0,0.00038356,6]
[327601127,1716250245303,-500.0,0.00038356,6]
[327601128,1716250245315,-500.0,0.00038356,6]
[327601130,1716250245325,-506.4,0.00038356,6]
[327601131,1716250245334,-500.0,0.00038356,6]
[327601132,1716250245344,-500.0,0.00038356,6]
[327601134,1716250245354,-594.98,0.00038356,6]
[327601135,1716250245363,-724.83,0.00038356,6]
[327601137,1716250245373,-744.12,0.00038356,6]
[327601138,1716250245383,-992.71,0.00038356,6]
[327601139,1716250245392,-500.0,0.00038356,6]
[327601141,1716250245403,-500.0,0.00038356,6]
[327601142,1716250245413,-500.0,0.00038356,6]
[327601144,1716250245423,-2052.19,0.00038356,6]
[327601145,1716250245432,-500.0,0.00038356,6]
[327601146,1716250245442,-2489.63,0.00038356,6]
[327601148,1716250245452,-623.87,0.00038356,6]
[327601149,1716250245462,-500.0,0.00038356,6]
[327601151,1716250245471,-500.0,0.00038356,6]
[327601152,1716250245481,-581.9,0.00038356,6]
[327601154,1716250245491,-500.0,0.00038356,6]
[327601155,1716250245505,-500.0,0.00038356,6]
[327601156,1716250245514,-621.296299,0.00038356,6]
[327601158,1716250245524,-895.49,0.00038356,6]
[327601159,1716250245533,-1737.76,0.00038356,6]
[327601161,1716250245545,-1433.4,0.00038356,6]
[327601162,1716250245555,-500.0,0.00038356,6]
[327601163,1716250245564,-500.0,0.00038356,6]
[327601165,1716250245575,-500.0,0.00038356,6]
[327601166,1716250245584,-839.1,0.00038356,6]
[327601168,1716250245593,-1759.64,0.00038356,6]
[327601169,1716250245603,-554.61,0.00038356,6]
[327601170,1716250245613,-500.0,0.00038356,6]
[327601172,1716250245623,-500.0,0.00038356,6]
[327601173,1716250245633,-500.0,0.00038356,6]
[327601175,1716250245643,-612.18,0.00038356,6]
[327601176,1716250245652,-500.0,0.00038356,6]
[327601177,1716250245662,-500.0,0.00038356,6]
[327601179,1716250245672,-500.0,0.00038356,6]
[327601180,1716250245681,-500.0,0.00038356,6]
[327601182,1716250245691,-878.77,0.00038356,6]
[327601183,1716250245701,-1441.85,0.00038356,6]
[327601184,1716250245710,-849.28,0.00038356,6]
[327601186,1716250245720,-500.0,0.00038356,6]
[327601187,1716250245729,-1221.25,0.00038356,6]
[327601189,1716250245739,-1221.25,0.00038356,6]
[327601190,1716250245749,-1221.25,0.00038356,6]
[327601191,1716250245758,-1221.25,0.00038356,6]
[327601193,1716250245768,-1221.25,0.00038356,6]
[327601194,1716250245778,-1277.72,0.00038356,6]
[327601197,1716250245787,-1221.25,0.00038356,6]
[327601198,1716250245797,-896.24,0.00038356,6]
[327601199,1716250245806,-1221.25,0.00038356,6]
[327601201,1716250245816,-1221.25,0.00038356,6]
[327601202,1716250245825,-1221.25,0.00038356,6]
[327601204,1716250245835,-1221.25,0.00038356,6]
[327601206,1716250245845,-1221.25,0.00038356,6]
[327601208,1716250245855,-1221.25,0.00038356,6]
[327601210,1716250245865,-1221.25,0.00038356,6]
[327601211,1716250245877,-1221.25,0.00038356,6]
[327601213,1716250245886,-1221.25,0.00038356,6]
[327601214,1716250245896,-500.0,0.00038356,6]
[327601216,1716250245906,-1221.25,0.00038356,6]
[327601217,1716250245916,-1221.25,0.00038356,6]
[327601218,1716250245926,-500.0,0.00038356,6]
[327601220,1716250245937,-500.0,0.00038356,6]
[327601221,1716250245947,-600.55,0.00038356,6]
[327601223,1716250245957,-500.0,0.00038356,6]
[327601224,1716250245968,-500.0,0.00038356,6]
[327601225,1716250245978,-500.0,0.00038356,6]
[327601227,1716250245988,-1865.33,0.00038356,6]
[327601228,1716250245998,-500.0,0.00038356,6]
[327601230,1716250246008,-970.8,0.00038356,6]
[327601231,1716250246017,-1108.7,0.00038356,6]
[327601233,1716250246030,-804.48,0.00038356,6]
[327601234,1716250246040,-500.0,0.00038356,6]
[327601235,1716250246050,-910.17,0.00038356,6]
[327601237,1716250246060,-860.17,0.00038356,6]
[327601238,1716250246070,-500.0,0.00038356,6]
[327601240,1716250246080,-1505.45,0.00038356,6]
[327601241,1716250246090,-500.0,0.00038356,6]
[327601242,1716250246100,-537.05,0.00038356,6]
[327601244,1716250246110,-500.0,0.00038356,6]
[327601245,1716250246119,-1382.53,0.00038356,6]
[327601247,1716250246131,-600.63,0.00038356,6]
[327601248,1716250246140,-500.0,0.00038356,6]
[327601249,1716250246150,-870.19,0.00038356,6]
[327601251,1716250246161,-1090.58,0.00038356,6]
[327601252,1716250246171,-767.99,0.00038356,6]
[327601254,1716250246181,-719.75,0.00038356,6]
[327601255,1716250246191,-500.0,0.00038356,6]
[327601256,1716250246201,-1879.12,0.00038356,6]
[327601258,1716250246211,-1036.24,0.00038356,6]
[327601259,1716250246221,-500.0,0.00038356,6]
[327601261,1716250246231,-500.0,0.00038356,6]
[327601262,1716250246240,-500.0,0.00038356,6]
[327601263,1716250246251,-500.0,0.00038356,6]
[327601265,1716250246261,-500.0,0.00038356,6]
[327601266,1716250246271,-537.76,0.00038356,6]
[327601268,1716250246282,-1214.86,0.00038356,6]
[327601269,1716250246292,-832.47,0.00038356,6]
[327601270,1716250246302,-1034.22,0.00038356,6]
[327601272,1716250246312,-500.0,0.00038356,6]
[327601273,1716250246322,-787.79,0.00038356,6]
[327601274,1716250246333,-1949.92,0.00038356,6]
[327601276,1716250246342,-500.0,0.00038356,6]
[327601277,1716250246352,-500.0,0.00038356,6]
[327601279,1716250246362,-2261.65,0.00038356,6]
[327601280,1716250246374,-1172.97,0.00038356,6]
[327601282,1716250246384,-500.0,0.00038356,6]
[327601283,1716250246394,-546.9,0.00038356,6]
[327601284,1716250246404,-1011.78,0.00038356,6]
[327601286,1716250246414,-500.0,0.00038356,6]
[327601287,1716250246424,-1740.32,0.00038356,6]
[327601289,1716250246434,-514.11,0.00038356,6]
[327601290,1716250246444,-1089.9,0.00038356,6]
[327601291,1716250246453,-1466.45,0.00038356,6]
[327601293,1716250246463,-1674.3,0.00038356,6]
[327601294,1716250246472,-500.0,0.00038356,6]
[327601296,1716250246482,-959.79,0.00038356,6]
[327601297,1716250246494,-560.04,0.00038356,6]
[327601299,1716250246509,-789.89,0.00038356,6]
[327601300,1716250246519,-500.0,0.00038356,6]
[327601301,1716250246528,-2654.6,0.00038356,6]
[327601303,1716250246539,-1041.71,0.00038356,6]
[327601304,1716250246549,-500.0,0.00038356,6]
[327601305,1716250246559,-2239.99,0.00038356,6]
[327601307,1716250246569,-500.0,0.00038356,6]
[327601308,1716250246580,-653.02,0.00038356,6]
[327601310,1716250246592,-506.44,0.00038356,6]
[327601311,1716250246602,-500.0,0.00038356,6]
[327601313,1716250246612,-974.76,0.00038356,6]
[327601314,1716250246623,-2389.11,0.00038356,6]
[327601315,1716250246633,-1015.86,0.00038356,6]
[327601317,1716250246643,-758.19,0.00038356,6]
[327601318,1716250246653,-500.0,0.00038356,6]
[327601320,1716250246663,-500.0,0.00038356,6]
[327601321,1716250246674,-500.0,0.00038356,6]
[327601322,1716250246684,-738.97,0.00038356,6]
[327601324,1716250246694,-743.44,0.00038356,6]
[327601325,1716250246704,-500.0,0.00038356,6]
[327601327,1716250246714,-500.0,0.00038356,6]
[327601328,1716250246724,-526.95,0.00038356,6]
[327601329,1716250246734,-503.27843616,0.00038356,6]
[327601331,1716250246744,-300.0,0.00038356,6]
[327601332,1716250246754,-1405.01,0.00038356,6]
[327601334,1716250246764,-500.0,0.00038356,6]
[327601335,1716250246774,-1071.23,0.00038356,6]
[327601337,1716250246784,-2226.85,0.00038356,6]
[327601338,1716250246793,-517.28,0.00038356,6]
[327601339,1716250246803,-500.0,0.00038356,6]
[327601341,1716250246813,-500.0,0.00038356,6]
[327601342,1716250246823,-503.78,0.00038356,6]
[327601344,1716250246833,-500.0,0.00038356,6]
[327601345,1716250246843,-500.0,0.00038356,6]
[327601346,1716250246853,-500.0,0.00038356,6]
[327601348,1716250246863,-500.0,0.00038356,6]
[327601349,1716250246873,-500.0,0.00038356,6]
[327601351,1716250246883,-500.0,0.00038356,6]
[327601352,1716250246892,-500.0,0.00038356,6]
[327601353,1716250246902,-500.0,0.00038356,6]
[327601355,1716250246912,-918.69,0.00038356,6]
[327601356,1716250246922,-528.78,0.00038356,6]
[327601358,1716250246932,-1115.42,0.00038356,6]
[327601359,1716250246942,-500.0,0.00038356,6]
[327601361,1716250246951,-500.0,0.00038356,6]
[327601362,1716250246961,-500.0,0.00038356,6]
[327601363,1716250246972,-500.0,0.00038356,6]
[327601365,1716250246981,-500.0,0.00038356,6]
[327601366,1716250246991,-570.94496606,0.00038356,6]
[327601368,1716250247001,-725.2,0.00038356,6]
[327601369,1716250247011,-500.0,0.00038356,6]
[327601370,1716250247021,-885.59,0.00038356,6]
[327601372,1716250247032,-414.61,0.00038356,6]
[327601373,1716250247042,-1308.41,0.00038356,6]
[327601375,1716250247052,-1223.74,0.00038356,6]
[327601376,1716250247064,-500.0,0.00038356,6]
[327601378,1716250247075,-500.0,0.00038356,6]
[327601379,1716250247086,-500.0,0.00038356,6]
[327601380,1716250247096,-1201.51,0.00038356,6]
[327601382,1716250247107,-1128.81,0.00038356,6]
[327601383,1716250247117,-500.0,0.00038356,6]
[327601385,1716250247128,-3797.02,0.00038356,6]
[327601386,1716250247138,-782.49,0.00038356,6]
[327601387,1716250247147,-2858.04,0.00038356,6]
[327601389,1716250247157,-500.0,0.00038356,6]
[327601390,1716250247168,-581.14,0.00038356,6]
[327601391,1716250247177,-500.0,0.00038356,6]
[327601392,1716250247187,-500.0,0.00038356,6]
[327601401,1716250247197,-2201.91,0.00038356,6]
[327601403,1716250247490,-639.13,0.00038356,6]
[327601404,1716250247505,-500.0,0.00038356,6]
[327601405,1716250247515,-1908.25,0.00038356,6]
[327601407,1716250247524,-4869.75,0.00038356,6]
[327601408,1716250247534,-500.0,0.00038356,6]
[327601410,1716250247545,-1169.61,0.00038356,6]
[327601411,1716250247555,-500.0,0.00038356,6]
[327601412,1716250247564,-500.0,0.00038356,6]
[327601414,1716250247574,-916.5,0.00038356,6]
[327601415,1716250247584,-500.0,0.00038356,6]
[327601416,1716250247595,-764.86,0.00038356,6]
[327601418,1716250247604,-1850.43,0.00038356,6]
[327601419,1716250247614,-500.0,0.00038356,6]
[327601421,1716250247625,-674.58,0.00038356,6]
[327601422,1716250247634,-500.0,0.00038356,6]
[327601423,1716250247643,-976.62,0.00038356,6]
[327601425,1716250247653,-1519.68,0.00038356,6]
[327601426,1716250247661,-545.26,0.00038356,6]
[327601428,1716250247671,-500.0,0.00038356,6]
[327601429,1716250247680,-467.38,0.00038356,20]
[327601430,1716250247689,-500.0,0.00038356,6]
[327601432,1716250247699,-2609.37,0.00038356,6]
[327601433,1716250247709,-1795.8,0.00038356,6]
[327601435,1716250247718,-1209.49,0.00038356,6]
[327601436,1716250247727,-932.12,0.00038356,6]
[327601437,1716250247737,-11152.83,0.00038356,6]
[327601439,1716250247746,-834.99,0.00038356,6]
[327601440,1716250247755,-500.0,0.00038356,6]
[327601442,1716250247765,-1093.13,0.00038356,6]
[327601443,1716250247775,-500.0,0.00038356,6]
[327601444,1716250247784,-4146.35,0.00038356,6]
[327601446,1716250247793,-706.31,0.00038356,6]
[327601447,1716250247803,-500.0,0.00038356,6]
[327601449,1716250247813,-1341.12,0.00038356,6]
[327601450,1716250247822,-1608.53,0.00038356,6]
[327601451,1716250247832,-1118.5,0.00038356,6]
[327601453,1716250247841,-500.0,0.00038356,6]
[327601454,1716250247851,-500.0,0.00038356,6]
[327601455,1716250247860,-9133.51,0.00038356,6]
[327601457,1716250247870,-3141.88,0.00038356,6]
[327601458,1716250247880,-500.0,0.00038356,6]
[327601460,1716250247890,-520.03,0.00038356,6]
[327601461,1716250247899,-600.27,0.00038356,6]
[327601462,1716250247908,-500.0,0.00038356,6]
[327601464,1716250247918,-1498.27,0.00038356,6]
[327601465,1716250247928,-2027.61,0.00038356,6]
[327601467,1716250247938,-500.0,0.00038356,6]
[327601468,1716250247947,-3902.16,0.00038356,6]
[327601469,1716250247957,-500.0,0.00038356,6]
[327601471,1716250247967,-2342.84,0.00038356,6]
[327601472,1716250247976,-500.0,0.00038356,6]
[327601474,1716250247986,-500.0,0.00038356,6]
[327601475,1716250247995,-579.77,0.00038356,6]
[327601477,1716250248005,-1069.75,0.00038356,6]
[327601478,1716250248015,-500.0,0.00038356,6]
[327601479,1716250248025,-500.0,0.00038356,6]
[327601481,1716250248034,-918.15,0.00038356,6]
[327601482,1716250248044,-573.99680896,0.00038356,6]
[327601484,1716250248053,-500.0,0.00038356,6]
[327601485,1716250248064,-500.0,0.00038356,6]
[327601486,1716250248074,-930.85,0.00038356,6]
[327601488,1716250248083,-500.0,0.00038356,6]
[327601489,1716250248093,-3226.04,0.00038356,6]
[327601491,1716250248102,-500.0,0.00038356,6]
[327601492,1716250248112,-5248.24,0.00038356,6]
[327601493,1716250248122,-500.0,0.00038356,6]
[327601495,1716250248132,-8893.21,0.00038356,6]
[327601496,1716250248141,-390.81944806,0.00038356,6]
[327601498,1716250248152,-500.0,0.00038356,6]
[327601499,1716250248162,-500.0,0.00038356,6]
[327601500,1716250248171,-830.05,0.00038356,6]
[327601502,1716250248180,-500.0,0.00038356,6]
[327601503,1716250248189,-500.0,0.00038356,6]
[327601505,1716250248199,-500.0,0.00038356,6]
[327601506,1716250248208,-742.41,0.00038356,6]
[327601507,1716250248217,-882.22,0.00038356,6]
[327601509,1716250248226,-1443.73,0.00038356,6]
[327601510,1716250248235,-1521.59,0.00038356,6]
[327601512,1716250248245,-500.0,0.00038356,6]
[327601513,1716250248254,-1885.22,0.00038356,6]
[327601514,1716250248263,-595.15,0.00038356,6]
[327601516,1716250248273,-500.0,0.00038356,6]
[327601517,1716250248282,-4062.3,0.00038356,6]
[327601519,1716250248292,-500.0,0.00038356,6]
[327601520,1716250248301,-500.0,0.00038356,6]
[327601521,1716250248310,-500.0,0.00038356,6]
[327601523,1716250248319,-1056.25,0.00038356,6]
[327601524,1716250248328,-1175.32,0.00038356,6]
[327601526,1716250248338,-500.0,0.00038356,6]
[327601527,1716250248347,-2490.17,0.00038356,6]
[327601528,1716250248357,-3292.6,0.00038356,6]
[327601530,1716250248366,-1712.22,0.00038356,6]
[327601531,1716250248375,-500.0,0.00038356,6]
[327601533,1716250248385,-500.0,0.00038356,6]
[327601534,1716250248394,-1961.99,0.00038356,6]
[327601535,1716250248403,-500.0,0.00038356,6]
[327601537,1716250248413,-1731.7,0.00038356,6]
[327601538,1716250248422,-746.04,0.00038356,6]
[327601540,1716250248432,-632.29,0.00038356,6]
[327601541,1716250248442,-500.0,0.00038356,6]
[327601542,1716250248452,-554.84,0.00038356,6]
[327601544,1716250248461,-500.0,0.00038356,6]
[327601545,1716250248471,-500.0,0.00038356,6]
[327601547,1716250248480,-500.0,0.00038356,6]
[327601548,1716250248489,-550.18,0.00038356,6]
[327601549,1716250248500,-576.64,0.00038356,6]
[327601551,1716250248510,-3163.84,0.00038356,6]
[327601552,1716250248523,-1101.04,0.00038356,6]
[327601554,1716250248532,-3035.37,0.00038356,6]
[327601555,1716250248542,-500.0,0.00038356,6]
[327601557,1716250248554,-3040.06,0.00038356,6]
[327601558,1716250248564,-176.92923746,0.00038356,6]
[327601559,1716250248573,-1967.41,0.00038356,6]
[327601561,1716250248583,-1449.51,0.00038356,6]
[327601562,1716250248593,-500.0,0.00038356,6]
[327601564,1716250248603,-2623.29,0.00038356,6]
[327601565,1716250248612,-2590.11,0.00038356,6]
[327601566,1716250248621,-919.13,0.00038356,6]
[327601568,1716250248633,-5255.23,0.00038356,6]
[327601569,1716250248643,-753.0,0.00038356,6]
[327601571,1716250248652,-500.0,0.00038356,6]
[327601572,1716250248661,-1196.22,0.00038356,6]
[327601573,1716250248671,-500.0,0.00038356,6]
[327601575,1716250248680,-1719.42,0.00038356,6]
[327601576,1716250248690,-596.19,0.00038356,6]
[327601578,1716250248699,-500.0,0.00038356,6]
[327601579,1716250248709,-500.0,0.00038356,6]
[327601580,1716250248718,-14604.95,0.00038356,6]
[327601582,1716250248727,-586.25,0.00038356,6]
[327601583,1716250248737,-2060.51,0.00038356,6]
[327601585,1716250248746,-500.0,0.00038356,6]
[327601586,1716250248756,-630.39398352,0.00038356,6]
[327601587,1716250248765,-932.77,0.00038356,6]
[327601589,1716250248774,-500.0,0.00038356,6]
[327601590,1716250248783,-740.3,0.00038356,6]
[327601592,1716250248793,-799.68,0.00038356,6]
[327601593,1716250248802,-500.0,0.00038356,6]
[327601594,1716250248812,-838.21,0.00038356,6]
[327601596,1716250248822,-666.31,0.00038356,6]
[327601597,1716250248831,-2597.23,0.00038356,6]
[327601599,1716250248840,-1241.77,0.00038356,6]
[327601600,1716250248850,-500.0,0.00038356,6]
[327601601,1716250248859,-1460.55,0.00038356,6]
[327601603,1716250248869,-500.0,0.00038356,6]
[327601604,1716250248881,-1395.61,0.00038356,6]
[327601606,1716250248890,-500.0,0.00038356,6]
[327601607,1716250248907,-979.16,0.00038356,6]
[327601609,1716250248916,-604.38,0.00038356,6]